bitfinex/quotes_ETHUSD_20250425
["timestamp","ask_amount","ask_price","bid_price","bid_amount"]
[1745592618166,19.777266,1801.3,1801.1,0.05]
[1745592618362,11.48260431,1801.2,1801.1,0.05]
[1745592618562,8.55239867,1801.1,1800.5,0.6464]
[1745592618768,3.0,1801.1,1800.5,0.6464]
[1745592619138,3.0,1801.0,1800.4,0.64615939]
[1745592619402,3.0,1800.8,1800.4,0.64615939]
[1745592619769,50.5,1800.7,1800.4,0.64615939]
[1745592620080,0.40611298,1800.8,1800.4,0.64615939]
[1745592620283,10.417516,1800.7,1800.4,0.64615939]
[1745592620800,10.417516,1800.7,1800.1,0.05]
[1745592621005,6.59553515,1800.6,1800.1,0.05]
[1745592621177,1.0417516,1800.6,1800.1,0.05]
[1745592621375,0.7955,1800.9,1800.1,0.05]
[1745592621596,5.55320755,1800.8,1800.1,0.05]
[1745592621788,8.5531361,1800.8,1800.1,0.05]
[1745592622011,3.0,1800.7,1800.1,0.05]
[1745592622204,1.21185217,1800.9,1800.1,0.05]
[1745592622409,5.55369641,1800.7,1800.1,0.05]
[1745592622571,6.10911721,1800.6,1800.1,0.05]
[1745592622766,0.8207,1800.5,1800.1,0.05]
[1745592623003,3.0,1800.4,1800.1,0.05]
[1745592623273,3.0,1800.2,1800.1,0.05]
[1745592623473,3.104829,1800.2,1800.1,0.05]
[1745592623674,0.8207,1800.5,1800.1,0.05]
[1745592623675,20.561349,1800.4,1800.1,0.05]
[1745592623870,2.0561349,1800.3,1800.1,0.05]
[1745592624100,0.8207,1800.5,1800.1,0.05]
[1745592624709,49.420961,1800.4,1800.1,0.05]
[1745592624920,56.05475473,1800.3,1800.1,0.05]
[1745592625076,27.835634,1800.2,1800.1,0.05]
[1745592625274,34.988279,1800.3,1800.1,0.05]
[1745592625471,6.4988279,1800.2,1800.1,0.05]
[1745592625698,3.26525,1800.2,1800.1,0.05]
[1745592625899,25.298514,1800.4,1800.1,0.05]
[1745592626108,25.71660225,1800.4,1800.1,0.05]
[1745592626307,31.734254,1800.3,1800.1,0.05]
[1745592626511,26.318877,1800.2,1800.1,0.05]
[1745592626673,20.5343407,1800.2,1800.1,0.05]
[1745592627015,6.4551127,1800.2,1800.1,0.05]
[1745592627210,3.523225,1800.2,1800.1,0.05]
[1745592628394,6.523225,1800.2,1800.1,0.05]
[1745592628612,3.523225,1800.2,1800.1,0.05]
[1745592628813,9.77855537,1800.9,1800.1,0.05]
[1745592629033,3.0,1800.7,1800.1,0.05]
[1745592629198,0.3,1800.6,1800.1,0.05]
[1745592629403,3.0,1800.4,1800.1,0.05]
[1745592629627,3.0,1800.7,1800.1,0.05]
[1745592629830,9.98600982,1800.9,1800.1,0.05]
[1745592629831,9.77855537,1800.9,1800.1,0.05]
[1745592630133,0.97785554,1800.8,1800.2,0.6464]
[1745592630341,1.20255537,1800.9,1800.2,0.6464]
[1745592630684,0.42025537,1800.9,1800.2,0.6464]
[1745592630929,9.6967,1801.3,1800.2,0.6464]
[1745592631530,0.71614112,1801.3,1800.2,0.6464]
[1745592631683,0.23340253,1801.2,1800.2,0.6464]
[1745592631888,0.23340253,1801.2,1800.3,0.05553955]
[1745592632434,0.214573,1801.1,1800.4,0.6464]
[1745592632887,5.55143939,1801.4,1800.4,0.6464]
[1745592633089,1.32654394,1801.3,1800.4,0.6464]
[1745592633395,0.77105717,1801.3,1800.4,0.6464]
[1745592633602,0.21591323,1801.3,1800.4,0.6464]
[1745592633812,1.17853987,1801.6,1800.4,0.6464]
[1745592633999,0.21658723,1801.5,1800.5,0.6464]
[1745592636109,3.21658723,1801.5,1800.5,0.6464]
[1745592636429,0.32165872,1801.4,1800.5,0.6464]
[1745592636639,0.21658723,1801.5,1800.5,0.6464]
[1745592636813,0.21581299,1801.3,1800.5,8.9714]
[1745592636998,3.0,1801.5,1800.5,8.9714]
[1745592637202,3.21597948,1801.4,1800.5,8.9714]
[1745592637538,0.21597948,1801.4,1800.7,0.6464]
[1745592637703,0.21597948,1801.4,1800.9,0.6464]
[1745592637905,0.7879,1802.2,1801.1,0.6464]
[1745592638111,0.7879,1802.2,1801.2,8.324]
[1745592638326,0.19967053,1802.1,1801.2,8.324]
[1745592638633,0.85331618,1802.1,1801.2,8.324]
[1745592638840,0.19967053,1802.1,1801.2,8.324]
[1745592639001,0.19967053,1802.1,1801.3,0.6464]
[1745592639202,6.37372557,1802.5,1801.3,0.6464]
[1745592639407,0.2066542,1802.4,1801.3,0.6464]
[1745592640157,0.2066542,1802.4,1801.3,0.70191359]
[1745592640442,3.0,1802.2,1801.3,1.54899136]
[1745592640640,8.75500159,1802.4,1801.3,0.6464]
[1745592640938,6.37370671,1802.5,1801.3,0.6464]
[1745592640939,0.20634467,1802.1,1801.3,0.6464]
[1745592641144,0.20655701,1802.3,1801.3,0.6464]
[1745592641453,0.20645085,1802.2,1801.3,0.6464]
[1745592641831,0.8258,1802.5,1801.3,0.6464]
[1745592642027,0.20634467,1802.1,1801.3,1.54344]
[1745592642218,0.8258,1802.5,1801.4,0.6464]
[1745592642419,0.20666317,1802.4,1801.4,0.6464]
[1745592642952,3.0,1802.3,1801.4,0.6464]
[1745592643324,0.20636171,1802.2,1801.4,0.6464]
[1745592643948,0.52699788,1802.2,1801.5,8.322]
[1745592644623,2.580082,1801.5,1801.4,0.6464]
[1745592644862,0.20997218,1801.5,1801.4,0.6464]
[1745592645273,3.0,1802.1,1801.4,0.6464]
[1745592645436,0.32063617,1802.2,1801.4,0.6464]
[1745592645628,3.0,1802.0,1801.4,0.6464]
[1745592645856,3.0,1802.0,1800.8,16.662]
[1745592645857,3.0,1801.8,1800.8,17.3084]
[1745592646058,1.02840431,1801.9,1800.8,17.3084]
[1745592646361,0.20931421,1801.7,1800.8,17.3084]
[1745592646676,0.20920796,1801.6,1800.9,8.073]
[1745592647030,3.0,1801.8,1800.9,8.073]
[1745592647329,0.3,1801.7,1800.8,17.3084]
[1745592647535,0.20869966,1801.7,1800.9,8.073]
[1745592648071,0.20859341,1801.6,1800.9,8.073]
[1745592648228,0.20859341,1801.6,1801.0,0.6464]
[1745592648432,3.42332733,1801.9,1801.0,0.6464]
[1745592648658,0.55113862,1801.8,1801.0,0.6464]
[1745592648872,6.10133214,1801.8,1801.0,0.6464]
[1745592649054,0.7837,1801.6,1800.7,0.6464]
[1745592649431,0.20848716,1801.5,1800.7,0.6464]
[1745592649851,3.0,1801.8,1800.7,0.6464]
[1745592650049,0.20838089,1801.4,1800.7,0.6464]
[1745592650246,0.3,1801.7,1800.7,0.6464]
[1745592650471,0.2083638,1801.3,1800.7,0.6464]
[1745592650635,9.74051957,1801.9,1800.7,0.6464]
[1745592650846,3.0,1801.6,1800.7,0.6464]
[1745592651044,0.3,1801.5,1800.7,8.7194]
[1745592651244,0.50709085,1801.5,1800.7,8.7194]
[1745592651482,0.50709085,1801.5,1800.7,0.6464]
[1745592651684,0.50709085,1801.5,1800.7,8.7194]
[1745592651979,0.20709085,1801.5,1800.8,0.6464]
[1745592652492,0.18979099,1801.4,1800.8,0.70192372]
[1745592652644,0.18979099,1801.4,1800.8,0.6464]
[1745592652850,3.0,1801.9,1800.8,0.6464]
[1745592653164,5.54920012,1802.1,1800.8,0.6464]
[1745592653165,0.18968471,1801.3,1800.8,0.6464]
[1745592653342,3.0,1802.0,1800.8,0.6464]
[1745592653543,0.3,1801.9,1800.8,0.6464]
[1745592653778,0.1903222,1801.9,1800.8,0.6464]
[1745592654191,0.1903222,1801.9,1801.0,0.6464]
[1745592654387,0.1903222,1801.9,1801.1,0.05551223]
[1745592654616,0.41479739,1802.1,1801.2,0.6464]
[1745592654876,3.8063,1802.5,1801.3,8.073]
[1745592655082,0.17637282,1802.0,1801.3,8.073]
[1745592655380,0.8063,1802.5,1801.4,0.6464]
[1745592655587,3.8063,1802.5,1801.4,0.6464]
[1745592655919,5.72512645,1802.4,1801.4,0.6464]
[1745592656065,3.0,1802.3,1801.4,0.6464]
[1745592656269,0.3,1802.2,1801.4,0.6464]
[1745592656498,0.17853109,1802.2,1801.4,0.6464]
[1745592656778,3.0,1802.3,1801.4,0.6464]
[1745592656980,3.0,1802.1,1801.4,0.6464]
[1745592657188,0.17831872,1802.0,1801.4,0.6464]
[1745592657496,0.49615059,1802.0,1801.4,0.6464]
[1745592658001,0.17831872,1802.0,1801.4,0.6464]
[1745592658204,3.425083,1802.0,1801.3,8.073]
[1745592658506,0.17729088,1801.9,1801.3,8.073]
[1745592659265,0.17729088,1801.9,1801.1,8.4694]
[1745592659471,3.0,1802.3,1801.1,8.4694]
[1745592659689,0.17657014,1801.8,1801.1,8.4694]
[1745592659889,0.41287535,1802.0,1801.2,0.6464]
[1745592660169,0.17646391,1801.7,1801.2,0.6464]
[1745592660363,3.0,1802.1,1801.2,0.6464]
[1745592660560,0.17635767,1801.6,1801.2,0.6464]
[1745592660801,3.0,1802.1,1801.2,1.49334]
[1745592660985,0.17625143,1801.5,1801.3,0.70191292]
[1745592661185,0.4140412,1802.0,1801.3,0.6464]
[1745592661386,13.823,1802.4,1801.3,0.6464]
[1745592661387,0.17667635,1801.9,1801.3,0.6464]
[1745592661617,13.823,1802.4,1801.3,0.6464]
[1745592661767,1.3823,1802.3,1801.3,0.6464]
[1745592661966,3.17710109,1802.3,1801.3,0.6464]
[1745592662202,3.0,1802.0,1801.3,0.6464]
[1745592662402,3.0,1802.2,1801.3,0.6464]
[1745592662571,3.18256532,1801.9,1801.3,0.6464]
[1745592662766,3.0,1801.7,1801.3,0.6464]
[1745592663110,3.0,1801.5,1801.0,17.3054]
[1745592663269,3.41882949,1801.5,1801.0,0.6464]
[1745592663472,3.0,1801.3,1801.0,0.6464]
[1745592663691,46.705897,1801.2,1800.5,7.823]
[1745592663876,0.18018318,1801.2,1800.6,0.6464]
[1745592664091,0.18018318,1801.2,1800.6,0.85249381]
[1745592664271,3.41882949,1801.5,1800.7,0.6464]
[1745592664465,0.17828422,1801.1,1800.7,0.6464]
[1745592664699,3.41882949,1801.5,1800.7,0.6464]
[1745592665209,0.17860307,1801.4,1800.7,0.6464]
[1745592665366,0.53834633,1801.4,1800.7,0.6464]
[1745592666465,0.53834633,1801.4,1800.7,8.4694]
[1745592667123,3.0,1801.1,1800.7,7.823]
[1745592667414,3.0,1801.1,1800.2,7.823]
[1745592667415,5.55320297,1800.8,1800.2,7.823]
[1745592667624,43.389266,1800.7,1800.2,7.823]
[1745592667772,41.8652126,1800.6,1800.1,0.6964]
[1745592667975,3.0,1800.4,1800.1,0.05]
[1745592668315,23.07147478,1800.3,1800.1,0.05]
[1745592668478,18.41292,1800.2,1800.1,0.05]
[1745592668682,18.58530303,1800.2,1800.1,0.05]
[1745592669016,5.12938303,1800.2,1800.1,0.05]
[1745592669506,0.17238303,1800.2,1800.1,0.05]
[1745592669666,9.16192303,1800.2,1800.1,0.05]
[1745592670013,15.10994303,1800.2,1800.1,0.05]
[1745592670307,5.12938303,1800.2,1800.1,0.05]
[1745592670607,0.17238303,1800.2,1800.1,0.05]
[1745592670821,0.17238303,1800.2,1800.1,0.6964]
[1745592670990,0.40943382,1800.7,1800.1,0.6964]
[1745592671191,3.0,1800.8,1800.1,0.6964]
[1745592671386,0.16067902,1800.6,1800.1,0.6964]
[1745592671714,0.16059269,1800.5,1800.1,0.05]
[1745592672014,3.0,1800.3,1800.1,0.05]
[1745592672173,9.30622024,1800.3,1799.5,0.6464]
[1745592672512,3.0,1800.1,1799.5,0.6464]
[1745592672689,7.31225,1800.0,1799.5,0.6464]
[1745592672874,7.47283253,1800.0,1799.5,0.6464]
[1745592673631,10.47283253,1800.0,1799.5,0.6464]
[1745592674222,10.89425709,1800.0,1799.9,0.83474125]
[1745592674429,3.0,1799.9,1799.1,0.6964]
[1745592674648,0.3,1799.8,1799.1,0.6964]
[1745592674848,0.14539254,1799.8,1799.1,0.6964]
[1745592675148,0.72142456,1800.0,1799.1,0.6964]
[1745592675435,0.42142456,1800.0,1799.1,0.6964]
[1745592675642,0.8323,1800.6,1799.3,0.55]
[1745592675936,0.41291286,1800.6,1799.5,0.6464]
[1745592676134,5.55327563,1800.8,1799.6,7.583]
[1745592676135,0.14536765,1800.5,1799.6,7.583]
[1745592676298,5.5536201,1800.7,1799.6,7.583]
[1745592676496,0.14526127,1800.4,1799.6,7.583]
[1745592676702,9.10917395,1800.6,1799.6,7.583]
[1745592676902,0.14515488,1800.3,1799.6,7.583]
[1745592677099,0.8,1800.4,1799.6,7.583]
[1745592677418,0.14504848,1800.2,1799.6,7.583]
[1745592677625,0.1449611,1800.1,1799.5,0.6464]
[1745592678398,3.8,1800.4,1799.5,0.6464]
[1745592678634,9.3544272,1800.4,1799.5,0.6464]
[1745592678839,0.14635423,1800.3,1799.5,0.6464]
[1745592679559,3.0,1800.0,1799.4,7.583]
[1745592679852,3.44547125,1799.9,1799.4,7.583]
[1745592680019,0.7723,1799.8,1799.2,0.6464]
[1745592680214,3.0,1799.7,1799.1,0.05]
[1745592680511,3.14497622,1799.7,1799.1,0.05]
[1745592683153,3.0,1799.5,1799.1,0.05]
[1745592683356,0.3,1799.4,1799.1,0.05]
[1745592683655,0.44074278,1799.4,1799.1,0.05]
[1745592684061,15.027049,1799.3,1799.1,0.05]
[1745592684255,3.0,1799.2,1799.1,0.05]
[1745592684560,10.60694835,1799.2,1799.1,0.05]
[1745592684765,8.29514735,1799.2,1799.1,0.05]
[1745592684922,5.53556735,1799.2,1799.1,0.05]
[1745592685524,5.17722435,1799.2,1799.1,0.05]
[1745592685724,14.59343135,1799.2,1799.1,0.05]
[1745592685943,16.15620335,1799.2,1799.1,0.05]
[1745592686275,17.66080568,1799.2,1799.1,0.05]
[1745592686628,17.44085768,1799.2,1799.1,0.05]
[1745592687052,20.44085768,1799.2,1799.1,0.05]
[1745592687837,17.44085768,1799.2,1799.1,0.05]
[1745592688159,11.32004468,1799.2,1799.1,0.05]
[1745592688873,11.02505868,1799.2,1799.1,0.05]
[1745592689526,9.52380368,1799.2,1799.1,0.05]
[1745592689861,0.14032435,1799.2,1799.1,0.6964]
[1745592690166,6.7989,1800.1,1799.1,8.0434]
[1745592690461,0.11531031,1799.2,1799.1,8.0434]
[1745592690670,6.0,1800.1,1799.2,0.6464]
[1745592690823,0.11660274,1800.0,1799.3,0.05557517]
[1745592691163,0.4106031,1800.2,1799.4,0.6464]
[1745592691363,6.38052196,1800.7,1799.4,0.6464]
[1745592691564,0.11670916,1800.1,1799.4,0.6464]
[1745592691742,3.0,1800.0,1799.4,0.6464]
[1745592691929,3.0,1799.8,1799.1,0.6964]
[1745592692130,3.0,1799.6,1799.1,0.6964]
[1745592692360,17.742149,1799.5,1799.1,0.6964]
[1745592692562,16.96193017,1799.5,1799.1,0.6964]
[1745592692729,9.67129,1799.4,1799.1,0.6964]
[1745592692930,0.967129,1799.3,1799.1,0.6964]
[1745592693268,4.8631,1799.2,1799.1,0.05]
[1745592693467,4.98079221,1799.2,1799.1,0.05]
[1745592694163,0.11769221,1799.2,1799.1,0.05]
[1745592695284,18.78761721,1799.2,1799.1,0.05]
[1745592695568,32.4363942,1799.2,1799.1,0.05]
[1745592696137,28.0156472,1799.2,1799.1,0.05]
[1745592696535,25.0354002,1799.2,1799.1,0.05]
[1745592697847,24.5026732,1799.2,1799.1,0.05]
[1745592698078,4.79601121,1799.2,1799.1,0.05]
[1745592699269,19.35403699,1799.2,1799.1,0.05]
[1745592699466,13.79601121,1799.2,1799.1,0.05]
[1745592699942,19.35403699,1799.2,1799.1,0.05]
[1745592700351,20.16773699,1799.2,1799.1,0.05]
[1745592700551,16.66806217,1799.2,1799.1,0.05]
[1745592700781,22.22608795,1799.2,1799.1,0.05]
[1745592701272,16.66806217,1799.2,1799.1,0.05]
[1745592701479,15.85436217,1799.2,1799.1,0.05]
[1745592702380,21.41238795,1799.2,1799.1,0.05]
[1745592702582,8.55881022,1799.0,1798.3,7.9934]
[1745592702877,6.91522764,1798.9,1798.3,7.9934]
[1745592703380,6.91522764,1798.9,1798.3,0.6464]
[1745592703589,12.47433679,1798.9,1798.3,0.6464]
[1745592703791,12.47433679,1798.9,1798.1,7.5643823]
[1745592703792,3.0,1798.7,1798.1,7.5643823]
[1745592703996,0.3,1798.6,1798.1,7.5643823]
[1745592704197,0.42921325,1798.6,1798.1,7.5643823]
[1745592704497,0.12921325,1798.6,1798.1,7.5643823]
[1745592704994,3.0,1798.5,1798.1,7.5643823]
[1745592705370,0.12766349,1798.4,1798.1,7.5643823]
[1745592705568,0.12766349,1798.4,1798.1,0.4683823]
[1745592705956,5.5247,1798.3,1798.1,0.4683823]
[1745592706181,0.55247,1798.2,1798.1,0.4683823]
[1745592706387,12.21000941,1798.2,1798.1,0.4683823]
[1745592706588,13.17796941,1798.2,1798.1,0.4683823]
[1745592707304,12.45993841,1798.2,1798.1,0.4683823]
[1745592707474,9.34488941,1798.2,1798.1,0.4683823]
[1745592707672,9.76709278,1798.2,1798.1,0.4683823]
[1745592707980,0.54886678,1798.2,1798.1,0.46667431]
[1745592708495,10.15205978,1798.2,1798.1,0.46667431]
[1745592708797,14.81346378,1798.2,1798.1,0.46667431]
[1745592709001,12.44136778,1798.2,1798.1,0.46667431]
[1745592709587,10.74236778,1798.2,1798.1,0.46667431]
[1745592709916,12.23720456,1798.2,1798.1,0.46667431]
[1745592710076,3.0,1798.1,1797.7,7.097]
[1745592710277,0.20763559,1798.0,1797.4,0.6464]
[1745592710501,2.31704015,1798.2,1797.4,0.6464]
[1745592710502,4.24280337,1798.2,1797.4,0.6464]
[1745592710812,0.20792933,1798.1,1797.4,0.6464]
[1745592710973,1.20912421,1798.1,1797.4,0.6464]
[1745592711570,0.20792933,1798.1,1797.4,0.6464]
[1745592711975,8.56144995,1798.1,1797.4,0.6464]
[1745592712174,4.24280337,1798.2,1797.4,0.6464]
[1745592712390,9.80402602,1798.2,1797.4,0.6464]
[1745592712589,6.80402602,1798.2,1797.4,0.6464]
[1745592712865,3.0,1798.0,1797.4,0.6464]
[1745592713297,0.6804026,1798.1,1797.4,0.6464]
[1745592713477,3.0,1798.0,1797.3,7.098]
[1745592713865,9.80415654,1798.2,1797.3,7.098]
[1745592714063,0.8224,1797.9,1797.3,7.098]
[1745592715505,1.23210337,1798.2,1797.3,7.098]
[1745592715705,0.22227899,1798.7,1798.0,0.6464]
[1745592716004,7.22503024,1798.9,1798.0,0.6464]
[1745592716205,8.55977879,1798.7,1797.4,6.01741591]
[1745592716374,0.8016,1798.6,1797.6,6.66381591]
[1745592718280,0.8016,1798.6,1797.8,6.01741591]
[1745592718474,0.63476099,1798.7,1797.9,0.6464]
[1745592718678,10.24474888,1798.9,1798.0,6.864]
[1745592718879,1.02447489,1798.8,1798.0,6.864]
[1745592719096,4.68578102,1798.9,1798.0,6.864]
[1745592719300,10.2448464,1798.9,1798.0,6.864]
[1745592719476,4.68578102,1798.9,1798.0,6.864]
[1745592720109,3.0,1798.7,1798.0,6.864]
[1745592720303,8.55967681,1798.7,1798.0,6.864]
[1745592720573,0.85596768,1798.6,1798.0,6.864]
[1745592721714,3.41510944,1798.7,1798.0,6.864]
[1745592721715,5.97488583,1798.7,1798.0,6.864]
[1745592721915,3.0,1798.6,1798.0,6.864]
[1745592722130,5.56095548,1798.3,1797.6,6.864]
[1745592722278,0.7911,1798.4,1797.3,0.6464]
[1745592722279,3.0,1798.0,1797.3,0.6464]
[1745592722483,8.95,1798.1,1797.3,0.6464]
[1745592722781,8.95,1798.1,1797.4,6.01741591]
[1745592722782,0.895,1798.0,1797.4,6.01741591]
[1745592723007,0.895,1798.0,1797.3,0.6464]
[1745592724315,3.7534,1797.9,1797.3,0.6464]
[1745592724626,4.30401961,1798.0,1797.3,0.6464]
[1745592724793,3.0,1797.8,1797.3,0.6464]
[1745592724994,0.3,1797.7,1797.3,0.6464]
[1745592725195,4.30401961,1798.0,1797.3,0.6464]
[1745592725507,5.95,1797.9,1797.3,0.6464]
[1745592725825,5.95,1797.9,1797.4,0.6464]
[1745592726613,5.95,1797.9,1797.5,6.01741591]
[1745592726815,0.40901961,1798.0,1797.5,6.01741591]
[1745592727001,3.0,1798.3,1797.6,0.6464]
[1745592727318,0.3,1798.2,1797.6,0.6464]
[1745592727484,3.3,1798.2,1797.6,0.6464]
[1745592727886,8.86112449,1798.2,1797.6,0.6464]
[1745592728194,8.86112449,1798.2,1797.7,6.01741591]
[1745592728195,0.41742242,1798.2,1797.7,6.01741591]
[1745592728381,5.95,1798.5,1797.8,6.864]
[1745592728587,3.0,1798.4,1797.8,6.864]
[1745592728783,3.0,1798.4,1797.9,0.6464]
[1745592728784,5.95,1798.3,1797.9,0.6464]
[1745592729785,3.0,1798.2,1797.9,0.6464]
[1745592730108,2.813797,1798.1,1797.9,0.6464]
[1745592730315,5.228781,1798.0,1797.9,0.6464]
[1745592730917,4.555661,1798.0,1797.9,0.6464]
[1745592731137,6.25,1798.1,1797.9,0.6464]
[1745592731345,5.163769,1798.0,1797.9,0.6464]
[1745592731509,5.95,1798.1,1797.9,0.6464]
[1745592733717,5.95,1798.1,1797.1,0.6]
[1745592733718,9.46241591,1798.0,1797.1,0.05]
[1745592733918,3.0,1797.6,1797.1,0.05]
[1745592734120,5.95,1797.6,1797.1,0.05]
[1745592734319,1.23512761,1798.2,1797.2,0.6464]
[1745592734519,0.40982761,1798.2,1797.3,0.6464]
[1745592734845,0.8253,1798.6,1797.5,0.6464]
[1745592735046,0.8253,1798.6,1797.6,0.6464]
[1745592735641,3.8253,1798.6,1797.6,0.6464]
[1745592736137,9.38520651,1798.6,1797.6,0.6464]
[1745592736358,3.0,1798.3,1797.6,0.6464]
[1745592736507,8.56100192,1798.3,1797.6,0.6464]
[1745592736706,0.85610019,1798.2,1797.6,0.6464]
[1745592736947,5.56158509,1798.1,1797.6,0.6464]
[1745592737317,5.56158509,1798.1,1797.1,0.05]
[1745592737318,3.0,1797.5,1797.1,0.05]
[1745592737463,3.0,1797.6,1797.1,0.05]
[1745592737848,9.33597796,1797.6,1797.1,0.05]
[1745592738152,9.37154899,1797.9,1797.1,0.05]
[1745592738360,0.9371549,1797.8,1797.1,0.05]
[1745592738980,0.7648,1798.2,1797.2,6.66381591]
[1745592739170,0.7648,1798.2,1797.3,0.6464]
[1745592739476,3.0,1798.1,1797.3,0.6464]
[1745592739658,0.7648,1798.2,1797.3,0.6464]
[1745592740032,3.7648,1798.2,1797.3,0.6464]
[1745592740357,0.37648,1798.1,1797.3,0.6464]
[1745592740556,3.7648,1798.2,1797.3,0.6464]
[1745592740770,5.95,1798.5,1797.6,6.01741591]
[1745592740944,5.95,1798.5,1797.7,7.2774]
[1745592741148,1.07829069,1798.9,1797.9,0.6464]
[1745592741458,0.87029577,1799.5,1798.3,0.6464]
[1745592741459,12.26163088,1799.4,1798.3,0.6464]
[1745592741776,6.01741591,1799.3,1798.4,6.631]
[1745592741975,5.55819185,1799.2,1798.4,6.631]
[1745592742280,3.0,1799.1,1798.4,6.631]
[1745592742473,0.31113914,1799.1,1798.6,6.01741591]
[1745592742788,0.31113914,1799.1,1798.9,0.6464]
[1745592743084,0.31113914,1799.1,1799.0,7.2764]
[1745592743595,0.31113914,1799.8,1799.0,7.2764]
[1745592743784,0.31113914,1799.8,1799.1,0.70198014]
[1745592744082,0.31113914,1799.7,1799.1,0.6464]
[1745592744269,0.31113914,1799.7,1799.2,6.63]
[1745592744666,5.86810995,1799.6,1798.9,0.6464]
[1745592744889,8.55727027,1799.5,1798.9,0.6464]
[1745592745188,8.55773688,1799.3,1798.9,0.6464]
[1745592745388,4.16686617,1799.4,1798.9,0.6464]
[1745592745543,1.16686617,1799.4,1798.9,0.6464]
[1745592745745,0.31113914,1799.4,1798.9,0.6464]
[1745592746370,0.31113914,1799.6,1798.9,0.6464]
[1745592746543,0.31113914,1799.6,1798.9,7.2754]
[1745592746745,0.31113914,1799.6,1799.0,0.6464]
[1745592747291,0.31113914,1799.5,1799.0,0.6464]
[1745592747968,0.31113914,1799.8,1799.1,0.6464]
[1745592748344,0.31113914,1799.8,1799.1,0.70197801]
[1745592748553,0.31113914,1799.8,1799.1,0.6464]
[1745592748752,0.05,1799.9,1799.2,0.6464]
[1745592749697,0.05,1799.9,1799.4,6.50415449]
[1745592749893,0.05,1799.9,1799.6,0.6464]
[1745592752389,0.12450884,1799.8,1799.6,0.6464]
[1745592752798,0.05,1799.9,1799.6,0.6464]
[1745592753773,0.12450884,1799.8,1799.6,0.6464]
[1745592754173,0.05,1799.9,1799.6,0.6464]
[1745592754607,0.1240011,1799.8,1799.5,6.628]
[1745592755099,0.05,1799.9,1799.5,6.628]
[1745592755583,0.1235388,1799.8,1799.5,6.628]
[1745592755958,0.05,1800.9,1799.9,0.2]
[1745592756172,0.05,1800.9,1799.6,0.60556645]
[1745592756173,0.05,1800.9,1800.7,6.50415449]
[1745592756374,0.05,1800.9,1800.7,14.32956994]
[1745592756584,0.05,1800.9,1800.8,0.6055155]
[1745592756884,0.05,1800.9,1800.8,0.55]
[1745592757076,0.05,1800.9,1800.8,1.1964]
[1745592757273,0.05,1800.9,1800.8,1.60571065]
[1745592757478,0.8123,1802.3,1801.0,0.55]
[1745592757704,0.8123,1802.3,1801.2,0.6464]
[1745592758029,3.8123,1802.3,1801.3,6.623]
[1745592758187,0.8123,1802.3,1801.3,6.623]
[1745592758388,0.28990435,1802.5,1801.4,6.50415449]
[1745592758576,5.83777009,1802.5,1801.4,7.15055449]
[1745592758910,7.3786,1802.6,1801.4,7.15055449]
[1745592759075,3.0,1802.5,1801.4,8.52790994]
[1745592759722,12.92631399,1802.6,1801.4,7.15055449]
[1745592759879,5.54800978,1802.5,1801.4,7.15055449]
[1745592760282,7.3786,1802.6,1801.4,7.15055449]
[1745592760605,5.5479386,1802.5,1801.4,7.15055449]
[1745592760814,0.12691101,1801.8,1801.7,6.50415449]
[1745592760998,3.0,1802.6,1801.7,13.12515449]
[1745592761729,3.22916773,1802.6,1801.7,6.621]
[1745592762049,0.12691101,1801.8,1801.7,6.621]
[1745592762346,0.12691101,1801.8,1801.3,6.662]
[1745592762527,0.7914,1802.2,1801.3,6.662]
[1745592762725,0.11750386,1801.7,1801.3,6.662]
[1745592763027,0.11652652,1801.6,1801.3,6.662]
[1745592763426,3.7914,1802.2,1801.3,6.662]
[1745592763656,5.95,1802.3,1801.4,6.50415449]
[1745592763950,0.11673898,1801.8,1801.4,6.50415449]
[1745592764157,3.0,1802.2,1801.4,6.50415449]
[1745592764306,0.11612398,1801.8,1801.4,6.50415449]
[1745592764512,3.0,1802.2,1801.4,0.05550152]
[1745592764816,0.11612398,1801.8,1801.4,0.74483415]
[1745592765235,3.0,1802.2,1801.5,1.1964]
[1745592765446,0.11601775,1801.7,1801.5,0.6464]
[1745592765606,3.0,1802.2,1801.5,0.6464]
[1745592765806,0.12727276,1801.6,1801.5,0.6464]
[1745592766051,3.0,1802.4,1801.5,1.49143532]
[1745592766220,3.0,1802.4,1801.5,1.43593886]
[1745592766420,0.12752772,1801.8,1801.5,0.6464]
[1745592766738,5.95,1802.5,1801.6,0.05549442]
[1745592766940,0.10740053,1801.8,1801.5,0.6464]
[1745592767156,3.0,1802.4,1801.5,0.6464]
[1745592767370,0.10745177,1801.8,1801.5,1.43593886]
[1745592767814,3.0,1802.4,1801.5,0.6464]
[1745592768215,0.10745177,1801.8,1801.5,0.6464]
[1745592768540,3.0,1802.4,1801.5,0.6464]
[1745592768749,0.10745177,1801.8,1801.5,0.6464]
[1745592768943,3.0,1802.4,1801.5,0.6464]
[1745592769118,0.10745177,1801.8,1801.5,0.6464]
[1745592769318,0.10745177,1801.8,1800.6,0.6464]
[1745592769319,7.700554,1801.2,1800.6,0.6464]
[1745592769550,3.12811103,1801.1,1800.6,0.6464]
[1745592770353,3.0,1800.9,1800.3,6.66]
[1745592770563,0.12470925,1800.8,1800.3,6.66]
[1745592770710,9.50415449,1800.9,1800.3,6.66]
[1745592771127,0.7589,1800.8,1800.3,6.66]
[1745592771951,1.78520545,1800.8,1800.2,0.6464]